fUSD/lending_fUSD_20260610
["ID","MTS","AMOUNT","RATE_DAILY","PERIOD"]
[424686016,1781049031000,-500.0,9.123e-05,2]
[424686025,1781049031000,-500.0,9.799e-05,2]
[424686022,1781049031000,-300.0,9.298e-05,2]
[424686020,1781049031000,-186.0,9.296e-05,2]
[424686021,1781049031000,-4000.0,9.298e-05,2]
[424686019,1781049031000,-182.0,9.212e-05,2]
[424686017,1781049031000,-182.0,9.127e-05,2]
[424686023,1781049031000,-150.0,9.46e-05,2]
[424686026,1781049031000,-1076.45687075,9.799e-05,3]
[424686024,1781049031000,-168.59,9.676e-05,2]
[424686010,1781049031000,-572.15,8.967e-05,2]
[424686008,1781049031000,-182.0,8.958e-05,2]
[424686006,1781049031000,-182.0,8.874e-05,2]
[424686027,1781049031000,-3275.391,9.799e-05,2]
[424686007,1781049031000,-2575.67,8.923e-05,2]
[424686005,1781049031000,-950.16,8.856e-05,2]
[424686003,1781049031000,-187.84,8.833e-05,2]
[424686018,1781049031000,-1696.3734381,9.172e-05,2]
[424686015,1781049031000,-250.0,9.123e-05,2]
[424686047,1781049032000,-570.78441082,9.799e-05,2]
[424686045,1781049032000,-570.78441082,9.799e-05,2]
[424686042,1781049032000,-570.78441082,9.799e-05,2]
[424686049,1781049032000,-570.78441082,9.799e-05,2]
[424686048,1781049032000,-570.78441082,9.799e-05,2]
[424686054,1781049032000,-570.78441082,9.799e-05,2]
[424686044,1781049032000,-570.78441082,9.799e-05,2]
[424686052,1781049032000,-570.78441082,9.799e-05,2]
[424686053,1781049032000,-570.78441082,9.799e-05,2]
[424686055,1781049032000,-570.78441082,9.799e-05,2]
[424686041,1781049032000,-570.78441082,9.799e-05,2]
[424686051,1781049032000,-570.78441082,9.799e-05,2]
[424686043,1781049032000,-570.78441082,9.799e-05,2]
[424686037,1781049032000,-570.78441082,9.799e-05,2]
[424686039,1781049032000,-570.78441082,9.799e-05,2]
[424686050,1781049032000,-570.78441082,9.799e-05,2]
[424686040,1781049032000,-570.78441082,9.799e-05,2]
[424686036,1781049032000,-570.78441082,9.799e-05,2]
[424686038,1781049032000,-570.78441082,9.799e-05,2]
[424686034,1781049032000,-570.78441082,9.799e-05,2]
[424686035,1781049032000,-570.78441082,9.799e-05,2]
[424686028,1781049032000,-239.83,9.799e-05,2]
[424686057,1781049032000,-570.78441082,9.799e-05,2]
[424686032,1781049032000,-570.78441082,9.799e-05,2]
[424686033,1781049032000,-570.78441082,9.799e-05,2]
[424686031,1781049032000,-612.24467181,9.799e-05,2]
[424686029,1781049032000,-500.0,9.799e-05,2]
[424686030,1781049032000,-500.0,9.799e-05,2]
[424686046,1781049032000,-570.78441082,9.799e-05,2]
[424686056,1781049032000,-570.78441082,9.799e-05,2]
[424686065,1781049032000,-570.78441082,9.799e-05,2]
[424686062,1781049032000,-570.78441082,9.799e-05,2]
[424686089,1781049032000,-397.39294153,9.799e-05,2]
[424686087,1781049032000,-286.24073442,9.799e-05,2]
[424686088,1781049032000,-570.78441082,9.799e-05,2]
[424686085,1781049032000,-570.78441082,9.799e-05,2]
[424686086,1781049032000,-284.5436764,9.799e-05,2]
[424686081,1781049032000,-570.78441082,9.799e-05,2]
[424686084,1781049032000,-570.78441082,9.799e-05,2]
[424686083,1781049032000,-570.78441082,9.799e-05,2]
[424686080,1781049032000,-570.78441082,9.799e-05,2]
[424686082,1781049032000,-570.78441082,9.799e-05,2]
[424686079,1781049032000,-570.78441082,9.799e-05,2]
[424686058,1781049032000,-570.78441082,9.799e-05,2]
[424686078,1781049032000,-570.78441082,9.799e-05,2]
[424686076,1781049032000,-570.78441082,9.799e-05,2]
[424686077,1781049032000,-570.78441082,9.799e-05,2]
[424686073,1781049032000,-570.78441082,9.799e-05,2]
[424686063,1781049032000,-570.78441082,9.799e-05,2]
[424686061,1781049032000,-570.78441082,9.799e-05,2]
[424686060,1781049032000,-570.78441082,9.799e-05,2]
[424686074,1781049032000,-570.78441082,9.799e-05,2]
[424686075,1781049032000,-570.78441082,9.799e-05,2]
[424686064,1781049032000,-570.78441082,9.799e-05,2]
[424686059,1781049032000,-570.78441082,9.799e-05,2]
[424686067,1781049032000,-570.78441082,9.799e-05,2]
[424686070,1781049032000,-570.78441082,9.799e-05,2]
[424686068,1781049032000,-570.78441082,9.799e-05,2]
[424686072,1781049032000,-570.78441082,9.799e-05,2]
[424686069,1781049032000,-570.78441082,9.799e-05,2]
[424686071,1781049032000,-570.78441082,9.799e-05,2]
[424686066,1781049032000,-570.78441082,9.799e-05,2]
[424686093,1781049037000,-570.78441082,9.799e-05,2]
[424686092,1781049037000,-173.39146929,9.799e-05,2]
[424686094,1781049037000,-423.32411989,9.799e-05,2]
[424686096,1781049037000,-570.78441082,9.799e-05,2]
[424686095,1781049037000,-147.46029093,9.799e-05,2]
[424686097,1781049037000,-312.45766407,9.799e-05,2]
[424686104,1781049037000,-570.78441082,9.799e-05,2]
[424686103,1781049037000,-570.78441082,9.799e-05,2]
[424686098,1781049037000,-258.32674675,9.799e-05,2]
[424686101,1781049037000,-570.78441082,9.799e-05,2]
[424686099,1781049037000,-570.78441082,9.799e-05,2]
[424686100,1781049037000,-570.78441082,9.799e-05,2]
[424686102,1781049037000,-570.78441082,9.799e-05,2]
[424686131,1781049038000,-179.86145705,0.0001,2]
[424686133,1781049038000,-186.01328401,0.0001,2]
[424686135,1781049038000,-381.67453395,0.0001,2]
[424686139,1781049038000,-960.0,0.00010032,2]
[424686138,1781049038000,-4000.0,0.00010027,2]
[424686137,1781049038000,-1966.8872473,0.0001,2]
[424686130,1781049038000,-201.0,9.989e-05,2]
[424686141,1781049038000,-255.0,0.00010406,2]
[424686140,1781049038000,-4000.0,0.00010278,2]
[424686142,1781049038000,-4000.0,0.00010529,2]
[424686150,1781049038000,-500.0,0.00010958,2]
[424686144,1781049038000,-290.83,0.0001073,2]
[424686129,1781049038000,-201.0,9.989e-05,2]
[424686148,1781049038000,-500.0,0.00010895,2]
[424686149,1781049038000,-500.0,0.00010958,2]
[424686143,1781049038000,-166.68,0.00010583,2]
[424686145,1781049038000,-4000.0,0.00010779,2]
[424686146,1781049038000,-1000.0,0.00010857,2]
[424686151,1781049038000,-500.0,0.00010958,2]
[424686154,1781049038000,-500.0,0.00010958,2]
[424686153,1781049038000,-500.0,0.00010958,2]
[424686155,1781049038000,-500.0,0.00010958,2]
[424686147,1781049038000,-1000.0,0.00010857,2]
[424686132,1781049038000,-611.89567607,0.0001,2]
[424686124,1781049038000,-1696.3734381,9.816e-05,2]
[424686152,1781049038000,-500.0,0.00010958,2]
[424686106,1781049038000,-570.78441082,9.799e-05,2]
[424686105,1781049038000,-570.78441082,9.799e-05,2]
[424686107,1781049038000,-570.78441082,9.799e-05,2]
[424686108,1781049038000,-570.78441082,9.799e-05,2]
[424686109,1781049038000,-570.78441082,9.799e-05,2]
[424686113,1781049038000,-556.51480056,9.799e-05,2]
[424686115,1781049038000,-556.51480056,9.799e-05,2]
[424686111,1781049038000,-570.78441082,9.799e-05,2]
[424686112,1781049038000,-556.51480056,9.799e-05,2]
[424686110,1781049038000,-570.78441082,9.799e-05,2]
[424686114,1781049038000,-556.51480056,9.799e-05,2]
[424686116,1781049038000,-556.51480056,9.799e-05,2]
[424686118,1781049038000,-556.51480056,9.799e-05,2]
[424686117,1781049038000,-556.51480056,9.799e-05,2]
[424686120,1781049038000,-556.51480056,9.799e-05,2]
[424686128,1781049038000,-201.0,9.989e-05,2]
[424686122,1781049038000,-556.51480056,9.799e-05,2]
[424686119,1781049038000,-556.51480056,9.799e-05,2]
[424686121,1781049038000,-556.51480056,9.799e-05,2]
[424686123,1781049038000,-556.51480052,9.799e-05,2]
[424686125,1781049038000,-215.89329178,9.862e-05,2]
[424686126,1781049038000,-640.0,9.893e-05,2]
[424686127,1781049038000,-786.55,9.941e-05,2]
[424686134,1781049038000,-381.67453395,0.0001,2]
[424686156,1781049038000,-166.66,0.00010959,2]
[424686136,1781049038000,-381.67453395,0.0001,2]
[424686157,1781049038000,-186.66,0.00010959,2]
[424686185,1781049038000,-960.0,0.00011286,2]
[424686189,1781049038000,-166.66,0.00011397,2]
[424686191,1781049038000,-63277.49345158,0.00011444,2]
[424686188,1781049038000,-1780.4253704,0.00011394,2]
[424686190,1781049038000,-500.0,0.00011443,2]
[424686187,1781049038000,-290.83,0.00011327,2]
[424686193,1781049038000,-433.0,0.00011447,2]
[424686201,1781049038000,-279.561933,0.00011598,2]
[424686192,1781049038000,-49313.4992321,0.00011444,2]
[424686194,1781049038000,-1780.4253704,0.00011464,2]
[424686195,1781049038000,-166.66,0.00011507,2]
[424686196,1781049038000,-1780.4253704,0.00011518,2]
[424686198,1781049038000,-1780.4253704,0.00011563,2]
[424686197,1781049038000,-6128.34842408,0.00011556,2]
[424686199,1781049038000,-215.217304,0.00011598,2]
[424686200,1781049038000,-160.0,0.00011598,2]
[424686203,1781049038000,-1780.4253704,0.00011603,2]
[424686206,1781049038000,-418.744634,0.00011642,2]
[424686204,1781049038000,-1780.4253704,0.00011639,2]
[424686202,1781049038000,-399.123867,0.00011598,2]
[424686207,1781049038000,-160.0,0.00011656,2]
[424686159,1781049038000,-150.0,0.00010959,2]
[424686208,1781049038000,-290.151049,0.00011656,2]
[424686186,1781049038000,-166.66,0.00011288,2]
[424686184,1781049038000,-999.99,0.00011281,2]
[424686205,1781049038000,-290.947859,0.00011639,2]
[424686182,1781049038000,-14627.39,0.00011281,2]
[424686183,1781049038000,-9999.99,0.00011281,2]
[424686160,1781049038000,-250.0,0.00010959,2]
[424686168,1781049038000,-49313.4992321,0.00011099,2]
[424686165,1781049038000,-500.0,0.00011098,2]
[424686167,1781049038000,-49313.49923215,0.00011099,2]
[424686170,1781049038000,-63277.4934516,0.00011099,2]
[424686163,1781049038000,-168.59,0.00011059,2]
[424686166,1781049038000,-500.0,0.00011098,2]
[424686162,1781049038000,-4000.0,0.0001103,2]
[424686161,1781049038000,-6128.34842414,0.00010999,2]
[424686164,1781049038000,-166.66,0.00011068,2]
[424686158,1781049038000,-150.0,0.00010959,2]
[424686180,1781049038000,-299.99,0.00011281,2]
[424686169,1781049038000,-49313.4992321,0.00011099,2]
[424686178,1781049038000,-9999.99,0.00011281,2]
[424686176,1781049038000,-1780.4253704,0.00011226,2]
[424686175,1781049038000,-166.66,0.00011178,2]
[424686177,1781049038000,-152.5,0.00011233,2]
[424686181,1781049038000,-150.99,0.00011281,2]
[424686173,1781049038000,-640.0,0.0001113,2]
[424686172,1781049038000,-63277.49345158,0.00011099,2]
[424686171,1781049038000,-63277.49345158,0.00011099,2]
[424686179,1781049038000,-7663.99,0.00011281,2]
[424686174,1781049038000,-500.0,0.00011169,2]
[424686242,1781049039000,-1780.4253704,0.00012135,2]
[424686240,1781049039000,-6128.34842408,0.00012114,2]
[424686237,1781049039000,-1780.4253704,0.0001207,2]
[424686233,1781049039000,-63277.49345158,0.0001202,2]
[424686238,1781049039000,-1780.4253704,0.00012086,2]
[424686241,1781049039000,-1780.4253704,0.00012119,2]
[424686235,1781049039000,-1780.4253704,0.00012035,2]
[424686239,1781049039000,-1780.4253704,0.00012103,2]
[424686236,1781049039000,-1780.4253704,0.00012053,2]
[424686243,1781049039000,-1780.4253704,0.0001215,2]
[424686246,1781049039000,-381.220818,0.00012177,2]
[424686249,1781049039000,-1780.4253704,0.0001221,2]
[424686247,1781049039000,-1780.4253704,0.0001218,2]
[424686248,1781049039000,-1780.4253704,0.00012195,2]
[424686245,1781049039000,-1780.4253704,0.00012165,2]
[424686250,1781049039000,-190.33847,0.00012224,2]
[424686251,1781049039000,-1780.4253704,0.00012224,2]
[424686252,1781049039000,-403.532441,0.00012235,2]
[424686253,1781049039000,-517.498427,0.00012238,2]
[424686234,1781049039000,-49313.4992321,0.0001202,2]
[424686244,1781049039000,-368.722028,0.00012153,2]
[424686232,1781049039000,-1780.4253704,0.00012017,2]
[424686216,1781049039000,-1780.4253704,0.00011732,2]
[424686231,1781049039000,-500.0,0.00012012,2]
[424686256,1781049039000,-1780.4253704,0.00012252,2]
[424686211,1781049039000,-1780.4253704,0.00011703,2]
[424686210,1781049039000,-1780.4253704,0.00011672,2]
[424686209,1781049039000,-420.302099,0.00011656,2]
[424686212,1781049039000,-160.0,0.00011713,2]
[424686220,1781049039000,-1780.4253704,0.00011834,2]
[424686213,1781049039000,-345.121627,0.00011713,2]
[424686217,1781049039000,-1780.4253704,0.00011759,2]
[424686214,1781049039000,-530.243254,0.00011713,2]
[424686215,1781049039000,-500.0,0.00011717,2]
[424686219,1781049039000,-1780.4253704,0.0001181,2]
[424686218,1781049039000,-1780.4253704,0.00011785,2]
[424686222,1781049039000,-1780.4253704,0.00011879,2]
[424686221,1781049039000,-1780.4253704,0.00011857,2]
[424686224,1781049039000,-1780.4253704,0.00011922,2]
[424686223,1781049039000,-1780.4253704,0.00011901,2]
[424686225,1781049039000,-290.83,0.00011923,2]
[424686226,1781049039000,-1780.4253704,0.00011942,2]
[424686227,1781049039000,-1780.4253704,0.00011961,2]
[424686229,1781049039000,-500.0,0.00011991,2]
[424686228,1781049039000,-1780.4253704,0.0001198,2]
[424686230,1781049039000,-1780.4253704,0.00011999,2]
[424686255,1781049039000,-1780.4253704,0.00012238,2]
[424686254,1781049039000,-395.660522,0.00012238,2]
[424686260,1781049039000,-1780.4253704,0.00012293,2]
[424686286,1781049039000,-49313.4992321,0.00013172,2]
[424686282,1781049039000,-6128.34842408,0.00012671,2]
[424686284,1781049039000,-290.83,0.00013115,2]
[424686285,1781049039000,-63277.49345158,0.00013172,2]
[424686288,1781049039000,-191.735455,0.0001331,2]
[424686287,1781049039000,-6128.34842408,0.00013228,2]
[424686289,1781049039000,-199.5,0.00013314,2]
[424686290,1781049039000,-198.234825,0.00013337,2]
[424686291,1781049039000,-269.099182,0.00013404,2]
[424686293,1781049039000,-244.722608,0.00013471,2]
[424686294,1781049039000,-150.0,0.00013488,2]
[424686300,1781049039000,-150.0,0.00013488,2]
[424686295,1781049039000,-150.0,0.00013488,2]
[424686299,1781049039000,-150.0,0.00013488,2]
[424686292,1781049039000,-205.743471,0.00013404,2]
[424686297,1781049039000,-150.0,0.00013488,2]
[424686298,1781049039000,-174.71291421,0.00013488,2]
[424686296,1781049039000,-150.3730817,0.00013488,2]
[424686302,1781049039000,-150.0,0.00013488,2]
[424686301,1781049039000,-150.0,0.00013488,2]
[424686303,1781049039000,-150.0,0.00013488,2]
[424686283,1781049039000,-500.0,0.00012813,2]
[424686280,1781049039000,-63277.49345158,0.00012596,2]
[424686257,1781049039000,-500.0,0.00012265,2]
[424686279,1781049039000,-736.0,0.00012591,2]
[424686262,1781049039000,-430.758146,0.00012302,2]
[424686304,1781049039000,-150.086276,0.00013488,2]
[424686261,1781049039000,-470.6204,0.00012299,2]
[424686258,1781049039000,-1780.4253704,0.00012266,2]
[424686259,1781049039000,-1780.4253704,0.0001228,2]
[424686264,1781049039000,-1780.4253704,0.0001232,2]
[424686281,1781049039000,-49313.4992321,0.00012596,2]
[424686265,1781049039000,-154.19,0.00012329,2]
[424686266,1781049039000,-1780.4253704,0.00012332,2]
[424686267,1781049039000,-1780.4253704,0.00012345,2]
[424686263,1781049039000,-1780.4253704,0.00012306,2]
[424686271,1781049039000,-1780.4253704,0.00012383,2]
[424686269,1781049039000,-640.0,0.00012366,2]
[424686275,1781049039000,-290.83,0.00012519,2]
[424686277,1781049039000,-960.0,0.0001254,2]
[424686276,1781049039000,-500.0,0.00012539,2]
[424686278,1781049039000,-500.0,0.00012589,2]
[424686272,1781049039000,-1780.4253704,0.00012395,2]
[424686273,1781049039000,-1780.4253704,0.00012407,2]
[424686268,1781049039000,-1780.4253704,0.00012358,2]
[424686270,1781049039000,-1780.4253704,0.0001237,2]
[424686274,1781049039000,-168.59,0.00012441,2]
[424686331,1781049040000,-174.71291421,0.00013578,2]
[424686329,1781049040000,-150.0,0.00013569,2]
[424686330,1781049040000,-150.0,0.00013569,2]
[424686332,1781049040000,-593.60148306,0.00013578,2]
[424686333,1781049040000,-150.0,0.00013585,2]
[424686336,1781049040000,-593.60148306,0.00013594,2]
[424686335,1781049040000,-174.71291421,0.00013594,2]
[424686339,1781049040000,-150.0,0.00013602,2]
[424686344,1781049040000,-593.60148306,0.00013609,2]
[424686350,1781049040000,-150.0,0.00013634,2]
[424686345,1781049040000,-150.0,0.00013618,2]
[424686342,1781049040000,-150.0,0.00013608,2]
[424686338,1781049040000,-2897.04049185,0.00013599,2]
[424686340,1781049040000,-150.0,0.00013603,2]
[424686337,1781049040000,-150.0,0.00013597,2]
[424686343,1781049040000,-174.71291421,0.00013609,2]
[424686346,1781049040000,-150.0,0.00013624,2]
[424686349,1781049040000,-150.0,0.00013628,2]
[424686348,1781049040000,-593.60148306,0.00013624,2]
[424686334,1781049040000,-150.0,0.00013588,2]
[424686341,1781049040000,-640.0,0.00013603,2]
[424686328,1781049040000,-150.0,0.00013568,2]
[424686316,1781049040000,-174.71291421,0.00013533,2]
[424686323,1781049040000,-174.71291421,0.00013548,2]
[424686351,1781049040000,-174.71291421,0.00013639,2]
[424686305,1781049040000,-593.60148306,0.00013488,2]
[424686306,1781049040000,-4949.4401,0.00013499,2]
[424686307,1781049040000,-174.71291421,0.00013503,2]
[424686308,1781049040000,-593.60148306,0.00013503,2]
[424686310,1781049040000,-150.0,0.00013508,2]
[424686309,1781049040000,-150.0,0.00013504,2]
[424686312,1781049040000,-174.71291421,0.00013518,2]
[424686313,1781049040000,-593.60148306,0.00013518,2]
[424686311,1781049040000,-150.0,0.00013515,2]
[424686314,1781049040000,-150.0,0.0001352,2]
[424686315,1781049040000,-150.0,0.00013528,2]
[424686317,1781049040000,-593.60148306,0.00013533,2]
[424686319,1781049040000,-150.0,0.00013542,2]
[424686320,1781049040000,-178.597944,0.00013545,2]
[424686318,1781049040000,-150.0,0.00013537,2]
[424686322,1781049040000,-150.0,0.00013548,2]
[424686324,1781049040000,-593.60148306,0.00013548,2]
[424686321,1781049040000,-150.0,0.00013545,2]
[424686326,1781049040000,-174.71291421,0.00013563,2]
[424686325,1781049040000,-150.0,0.00013553,2]
[424686327,1781049040000,-593.60148306,0.00013563,2]
[424686353,1781049040000,-150.0,0.00013648,2]
[424686354,1781049040000,-150.0,0.00013651,2]
[424686388,1781049040000,-500.0,0.00013698,2]
[424686378,1781049040000,-500.0,0.00013698,2]
[424686380,1781049040000,-500.0,0.00013698,2]
[424686383,1781049040000,-500.0,0.00013698,2]
[424686382,1781049040000,-500.0,0.00013698,2]
[424686381,1781049040000,-500.0,0.00013698,2]
[424686384,1781049040000,-500.0,0.00013698,2]
[424686385,1781049040000,-500.0,0.00013698,2]
[424686387,1781049040000,-500.0,0.00013698,2]
[424686389,1781049040000,-500.0,0.00013698,2]
[424686393,1781049040000,-500.0,0.00013698,2]
[424686390,1781049040000,-500.0,0.00013698,2]
[424686391,1781049040000,-500.0,0.00013698,2]
[424686392,1781049040000,-500.0,0.00013698,2]
[424686395,1781049040000,-500.0,0.00013698,2]
[424686394,1781049040000,-500.0,0.00013698,2]
[424686397,1781049040000,-500.0,0.00013698,2]
[424686396,1781049040000,-500.0,0.00013698,2]
[424686398,1781049040000,-500.0,0.00013698,2]
[424686401,1781049040000,-500.0,0.00013698,2]
[424686399,1781049040000,-500.0,0.00013698,2]
[424686355,1781049040000,-150.0,0.00013651,2]
[424686377,1781049040000,-500.0,0.00013698,2]
[424686379,1781049040000,-500.0,0.00013698,2]
[424686386,1781049040000,-500.0,0.00013698,2]
[424686374,1781049040000,-500.0,0.00013698,2]
[424686352,1781049040000,-593.60148306,0.00013639,2]
[424686347,1781049040000,-174.71291421,0.00013624,2]
[424686357,1781049040000,-150.0,0.00013654,2]
[424686356,1781049040000,-174.71291421,0.00013654,2]
[424686359,1781049040000,-150.0,0.00013661,2]
[424686358,1781049040000,-593.60148306,0.00013654,2]
[424686360,1781049040000,-150.0,0.00013667,2]
[424686376,1781049040000,-500.0,0.00013698,2]
[424686361,1781049040000,-150.0,0.00013668,2]
[424686363,1781049040000,-593.60148306,0.00013669,2]
[424686364,1781049040000,-150.0,0.00013678,2]
[424686362,1781049040000,-174.71291421,0.00013669,2]
[424686369,1781049040000,-4876.07084825,0.00013688,2]
[424686365,1781049040000,-150.0,0.00013683,2]
[424686375,1781049040000,-500.0,0.00013698,2]
[424686371,1781049040000,-500.0,0.00013698,2]
[424686373,1781049040000,-500.0,0.00013698,2]
[424686372,1781049040000,-287.34212826,0.00013698,2]
[424686366,1781049040000,-174.71291421,0.00013684,2]
[424686368,1781049040000,-150.0,0.00013687,2]
[424686367,1781049040000,-593.60148306,0.00013684,2]
[424686370,1781049040000,-500.0,0.00013697,2]
[424686435,1781049041000,-500.0,0.00013698,2]
[424686427,1781049041000,-500.0,0.00013698,2]
[424686426,1781049041000,-639.36,0.00013698,2]
[424686434,1781049041000,-500.0,0.00013698,2]
[424686430,1781049041000,-500.0,0.00013698,2]
[424686432,1781049041000,-500.0,0.00013698,2]
[424686433,1781049041000,-500.0,0.00013698,2]
[424686431,1781049041000,-500.0,0.00013698,2]
[424686437,1781049041000,-500.0,0.00013698,2]
[424686436,1781049041000,-500.0,0.00013698,2]
[424686439,1781049041000,-500.0,0.00013698,2]
[424686446,1781049041000,-500.0,0.00013698,2]
[424686441,1781049041000,-500.0,0.00013698,2]
[424686438,1781049041000,-500.0,0.00013698,2]
[424686440,1781049041000,-500.0,0.00013698,2]
[424686443,1781049041000,-500.0,0.00013698,2]
[424686442,1781049041000,-500.0,0.00013698,2]
[424686445,1781049041000,-500.0,0.00013698,2]
[424686447,1781049041000,-500.0,0.00013698,2]
[424686448,1781049041000,-500.0,0.00013698,2]
[424686452,1781049041000,-500.0,0.00013698,2]
[424686429,1781049041000,-500.0,0.00013698,2]
[424686444,1781049041000,-500.0,0.00013698,2]
[424686428,1781049041000,-500.0,0.00013698,2]
[424686405,1781049041000,-500.0,0.00013698,2]
[424686422,1781049041000,-639.36,0.00013698,2]
[424686402,1781049041000,-500.0,0.00013698,2]
[424686404,1781049041000,-500.0,0.00013698,2]
[424686403,1781049041000,-500.0,0.00013698,2]
[424686406,1781049041000,-500.0,0.00013698,2]
[424686408,1781049041000,-500.0,0.00013698,2]
[424686407,1781049041000,-500.0,0.00013698,2]
[424686409,1781049041000,-500.0,0.00013698,2]
[424686410,1781049041000,-500.0,0.00013698,2]
[424686412,1781049041000,-500.0,0.00013698,2]
[424686413,1781049041000,-500.0,0.00013698,2]
[424686415,1781049041000,-500.0,0.00013698,2]
[424686411,1781049041000,-500.0,0.00013698,2]
[424686414,1781049041000,-500.0,0.00013698,2]
[424686416,1781049041000,-500.0,0.00013698,2]
[424686424,1781049041000,-639.36,0.00013698,2]
[424686420,1781049041000,-639.36,0.00013698,2]
[424686419,1781049041000,-500.0,0.00013698,2]
[424686423,1781049041000,-639.36,0.00013698,2]
[424686421,1781049041000,-639.36,0.00013698,2]
[424686418,1781049041000,-500.0,0.00013698,2]
[424686417,1781049041000,-500.0,0.00013698,2]
[424686425,1781049041000,-639.36,0.00013698,2]
[424686450,1781049041000,-500.0,0.00013698,2]
[424686500,1781049041000,-188.1,0.00013699,2]
[424686449,1781049041000,-500.0,0.00013698,2]
[424686479,1781049041000,-566.6258752,0.00013698,2]
[424686481,1781049041000,-500.0,0.00013698,2]
[424686480,1781049041000,-500.0,0.00013698,2]
[424686483,1781049041000,-500.0,0.00013698,2]
[424686487,1781049041000,-500.0,0.00013698,2]
[424686484,1781049041000,-500.0,0.00013698,2]
[424686482,1781049041000,-500.0,0.00013698,2]
[424686486,1781049041000,-500.0,0.00013698,2]
[424686485,1781049041000,-500.0,0.00013698,2]
[424686488,1781049041000,-500.0,0.00013698,2]
[424686492,1781049041000,-500.0,0.00013698,2]
[424686489,1781049041000,-500.0,0.00013698,2]
[424686496,1781049041000,-500.0,0.00013698,2]
[424686491,1781049041000,-500.0,0.00013698,2]
[424686493,1781049041000,-500.0,0.00013698,2]
[424686494,1781049041000,-500.0,0.00013698,2]
[424686495,1781049041000,-500.0,0.00013698,2]
[424686490,1781049041000,-500.0,0.00013698,2]
[424686497,1781049041000,-500.0,0.00013698,2]
[424686499,1781049041000,-2500.0,0.00013699,2]
[424686451,1781049041000,-500.0,0.00013698,2]
[424686477,1781049041000,-500.0,0.00013698,2]
[424686478,1781049041000,-500.0,0.00013698,2]
[424686498,1781049041000,-200.0,0.00013699,2]
[424686470,1781049041000,-500.0,0.00013698,2]
[424686476,1781049041000,-500.0,0.00013698,2]
[424686463,1781049041000,-692.75,0.00013698,2]
[424686454,1781049041000,-500.0,0.00013698,2]
[424686464,1781049041000,-692.75,0.00013698,2]
[424686456,1781049041000,-500.0,0.00013698,2]
[424686457,1781049041000,-168.97999999,0.00013698,2]
[424686458,1781049041000,-692.75,0.00013698,2]
[424686455,1781049041000,-500.0,0.00013698,2]
[424686459,1781049041000,-692.75,0.00013698,2]
[424686462,1781049041000,-692.75,0.00013698,2]
[424686460,1781049041000,-692.75,0.00013698,2]
[424686453,1781049041000,-500.0,0.00013698,2]
[424686465,1781049041000,-692.75,0.00013698,2]
[424686467,1781049041000,-692.75,0.00013698,2]
[424686468,1781049041000,-692.75,0.00013698,2]
[424686471,1781049041000,-500.0,0.00013698,2]
[424686466,1781049041000,-692.75,0.00013698,2]
[424686472,1781049041000,-500.0,0.00013698,2]
[424686474,1781049041000,-500.0,0.00013698,2]
[424686475,1781049041000,-500.0,0.00013698,2]
[424686469,1781049041000,-692.75,0.00013698,2]
[424686473,1781049041000,-500.0,0.00013698,2]
[424686461,1781049041000,-692.75,0.00013698,2]
[424686529,1781049042000,-2026.21594304,0.00013699,2]
[424686527,1781049042000,-2026.21594304,0.00013699,2]
[424686534,1781049042000,-2026.21594304,0.00013699,2]
[424686528,1781049042000,-2026.21594304,0.00013699,2]
[424686535,1781049042000,-2026.21594304,0.00013699,2]
[424686531,1781049042000,-2026.21594304,0.00013699,2]
[424686532,1781049042000,-2026.21594304,0.00013699,2]
[424686530,1781049042000,-2026.21594304,0.00013699,2]
[424686533,1781049042000,-2026.21594304,0.00013699,2]
[424686538,1781049042000,-2026.21594304,0.00013699,2]
[424686537,1781049042000,-2026.21594304,0.00013699,2]